[Event "Titled Tuesday Blitz July 25 Early 2023"]
[White "Donchenko, Alexander"]
[Black "Zavgorodniy, Sergiy"]
[WhiteFideId "24603295"]
[BlackFideId "14110148"]
[WhiteElo "2842"]
[BlackElo "2550"]
[Result "1-0"]
[Round "2"]
[TimeControl "180+2"]
[Date "2023.07.25"]
[WhiteClock "0:00:03"]
[BlackClock "0:00:02"]
[Board "51"]

1. c4 {[%clk 0:03:00]}  Nf6 {[%clk 0:02:59]} 2. g3 {[%clk 0:03:01]}  e5 {[%clk 0:02:58]} 3. Bg2 {[%clk 0:03:01]}  d6 {[%clk 0:02:58]} 4. Nc3 {[%clk 0:03:01]}  c6 {[%clk 0:02:58]} 5. e4 {[%clk 0:03:01]}  Be7 {[%clk 0:02:56]} 6. Nge2 {[%clk 0:03:01]}  O-O {[%clk 0:02:56]} 7. O-O {[%clk 0:03:02]}  a6 {[%clk 0:02:39]} 8. d3 {[%clk 0:03:00]}  b5 {[%clk 0:02:38]} 9. h3 {[%clk 0:02:55]}  bxc4 {[%clk 0:02:33]} 10. dxc4 {[%clk 0:02:55]}  c5 {[%clk 0:02:33]} 11. Bg5 {[%clk 0:02:51]}  Nc6 {[%clk 0:02:33]} 12. Bxf6 {[%clk 0:02:51]}  Bxf6 {[%clk 0:02:32]} 13. Nd5 {[%clk 0:02:52]}  Nd4 {[%clk 0:02:31]} 14. Nxd4 {[%clk 0:02:52]}  cxd4 {[%clk 0:02:30]} 15. Qa4 {[%clk 0:02:46]}  Be6 {[%clk 0:02:26]} 16. h4 {[%clk 0:02:36]}  Bxd5 {[%clk 0:02:06]} 17. cxd5 {[%clk 0:02:34]}  Qb6 {[%clk 0:02:07]} 18. Qa3 {[%clk 0:02:14]}  Rab8 {[%clk 0:01:57]} 19. b3 {[%clk 0:02:09]}  Rfc8 {[%clk 0:01:56]} 20. Rac1 {[%clk 0:02:06]}  g5 {[%clk 0:01:31]} 21. Bh3 {[%clk 0:01:52]}  Rxc1 {[%clk 0:01:27]} 22. Qxc1 {[%clk 0:01:52]}  gxh4 {[%clk 0:01:23]} 23. Qh6 {[%clk 0:01:51]}  Bg7 {[%clk 0:01:21]} 24. Qxh4 {[%clk 0:01:51]}  d3 {[%clk 0:01:12]} 25. Rd1 {[%clk 0:01:47]}  Qd4 {[%clk 0:01:06]} 26. Bf1 {[%clk 0:01:39]}  d2 {[%clk 0:01:03]} 27. Bc4 {[%clk 0:01:02]}  f5 {[%clk 0:00:42]} 28. exf5 {[%clk 0:00:29]}  Qxh4 {[%clk 0:00:41]} 29. gxh4 {[%clk 0:00:30]}  Bh6 {[%clk 0:00:41]} 30. Kf1 {[%clk 0:00:22]}  Kf7 {[%clk 0:00:41]} 31. Ke2 {[%clk 0:00:21]}  Rg8 {[%clk 0:00:36]} 32. Bxa6 {[%clk 0:00:20]}  Ra8 {[%clk 0:00:35]} 33. Bd3 {[%clk 0:00:18]}  Rxa2 {[%clk 0:00:35]} 34. b4 {[%clk 0:00:19]}  Rb2 {[%clk 0:00:34]} 35. b5 {[%clk 0:00:19]}  Rb4 {[%clk 0:00:33]} 36. Rb1 {[%clk 0:00:18]}  Rxb1 {[%clk 0:00:11]} 37. Bxb1 {[%clk 0:00:19]}  Ke7 {[%clk 0:00:11]} 38. Bd3 {[%clk 0:00:17]}  Kd7 {[%clk 0:00:10]} 39. f6 {[%clk 0:00:17]}  Kc7 {[%clk 0:00:07]} 40. Bxh7 {[%clk 0:00:16]}  Kb6 {[%clk 0:00:08]} 41. Bd3 {[%clk 0:00:16]}  Kc5 {[%clk 0:00:08]} 42. f7 {[%clk 0:00:16]}  Kb6 {[%clk 0:00:07]} 43. h5 {[%clk 0:00:15]}  Kc5 {[%clk 0:00:07]} 44. f8=Q {[%clk 0:00:15]}  Bxf8 {[%clk 0:00:06]} 45. Kxd2 {[%clk 0:00:15]}  Bh6+ {[%clk 0:00:06]} 46. Ke2 {[%clk 0:00:15]}  Kxd5 {[%clk 0:00:07]} 47. Kf3 {[%clk 0:00:13]}  Kc5 {[%clk 0:00:04]} 48. Ke4 {[%clk 0:00:13]}  Bc1 {[%clk 0:00:03]} 49. Kf5 {[%clk 0:00:12]}  Bd2 {[%clk 0:00:03]} 50. Kg6 {[%clk 0:00:12]}  d5 {[%clk 0:00:03]} 51. h6 {[%clk 0:00:03]}  Bxh6 {[%clk 0:00:02]} 52. Kxh6 {[%clk 0:00:04]}  e4 {[%clk 0:00:03]} 53. Bf1 {[%clk 0:00:04]}  d4 {[%clk 0:00:03]} 54. Kg6 {[%clk 0:00:03]}  d3 {[%clk 0:00:01]} 55. Kf5 {[%clk 0:00:03]}  d2 {[%clk 0:00:01]} 56. Be2 {[%clk 0:00:02]}  d1=Q {[%clk 0:00:01]} 57. Bxd1 {[%clk 0:00:02]}  Kxb5 {[%clk 0:00:02]} 58. Kxe4 {[%clk 0:00:03]} 1-0


[Site "https://www.chess.com"]

[Event "Titled Tuesday Blitz July 25 Early 2023"]
[White "Kaasen, Tor Fredrik"]
[Black "Yaran, Siar"]
[WhiteFideId "1516647"]
[BlackFideId "6323006"]
[WhiteElo "2837"]
[BlackElo "2548"]
[Result "0-1"]
[Round "2"]
[TimeControl "180+2"]
[Date "2023.07.25"]
[WhiteClock "0:00:03"]
[BlackClock "0:00:10"]
[Board "53"]

1. Nf3 {[%clk 0:03:00]}  Nf6 {[%clk 0:02:54]} 2. e3 {[%clk 0:03:00]}  e6 {[%clk 0:02:55]} 3. b3 {[%clk 0:02:59]}  d5 {[%clk 0:02:54]} 4. Bb2 {[%clk 0:03:00]}  Be7 {[%clk 0:02:53]} 5. c4 {[%clk 0:03:01]}  O-O {[%clk 0:02:52]} 6. Nc3 {[%clk 0:03:00]}  c5 {[%clk 0:02:52]} 7. cxd5 {[%clk 0:03:00]}  Nxd5 {[%clk 0:02:52]} 8. Nxd5 {[%clk 0:02:59]}  Qxd5 {[%clk 0:02:51]} 9. Qc2 {[%clk 0:02:49]}  Nc6 {[%clk 0:02:50]} 10. a3 {[%clk 0:02:48]}  e5 {[%clk 0:02:46]} 11. Bc4 {[%clk 0:02:44]}  Qd6 {[%clk 0:02:45]} 12. h4 {[%clk 0:02:44]}  h6 {[%clk 0:02:40]} 13. Qe4 {[%clk 0:02:34]}  Rd8 {[%clk 0:01:36]} 14. Bxe5 {[%clk 0:02:18]}  Nxe5 {[%clk 0:01:35]} 15. Nxe5 {[%clk 0:02:16]}  Be6 {[%clk 0:01:36]} 16. Rd1 {[%clk 0:01:53]}  Bf6 {[%clk 0:01:19]} 17. Ng4 {[%clk 0:01:43]}  Bxg4 {[%clk 0:01:02]} 18. Qxg4 {[%clk 0:01:42]}  a6 {[%clk 0:01:03]} 19. a4 {[%clk 0:01:35]}  b5 {[%clk 0:01:03]} 20. axb5 {[%clk 0:01:29]}  axb5 {[%clk 0:01:04]} 21. Bxb5 {[%clk 0:01:24]}  Bc3 {[%clk 0:01:04]} 22. O-O {[%clk 0:01:16]}  Bxd2 {[%clk 0:01:05]} 23. Bc4 {[%clk 0:01:02]}  Qf6 {[%clk 0:00:54]} 24. h5 {[%clk 0:00:50]}  Rd6 {[%clk 0:00:48]} 25. Qe4 {[%clk 0:00:38]}  Rad8 {[%clk 0:00:47]} 26. Ra1 {[%clk 0:00:37]}  R6d7 {[%clk 0:00:36]} 27. Ra6 {[%clk 0:00:36]}  Qg5 {[%clk 0:00:34]} 28. Qf3 {[%clk 0:00:28]}  Bc3 {[%clk 0:00:27]} 29. Rg6 {[%clk 0:00:24]}  Qe7 {[%clk 0:00:25]} 30. Qg4 {[%clk 0:00:20]}  Kf8 {[%clk 0:00:23]} 31. Rc6 {[%clk 0:00:20]}  Bf6 {[%clk 0:00:22]} 32. Qf5 {[%clk 0:00:19]}  Qe5 {[%clk 0:00:20]} 33. Qh7 {[%clk 0:00:17]}  Qxh5 {[%clk 0:00:20]} 34. Rb6 {[%clk 0:00:10]}  Ke7 {[%clk 0:00:20]} 35. Qe4+ {[%clk 0:00:09]}  Kf8 {[%clk 0:00:20]} 36. Rc6 {[%clk 0:00:08]}  Kg8 {[%clk 0:00:20]} 37. g3 {[%clk 0:00:08]}  Rd2 {[%clk 0:00:16]} 38. Ra6 {[%clk 0:00:06]}  Qe5 {[%clk 0:00:14]} 39. Qxe5 {[%clk 0:00:06]}  Bxe5 {[%clk 0:00:15]} 40. Rc6 {[%clk 0:00:07]}  Bd6 {[%clk 0:00:14]} 41. Kg2 {[%clk 0:00:07]}  g6 {[%clk 0:00:15]} 42. Ra1 {[%clk 0:00:06]}  Rd7 {[%clk 0:00:15]} 43. Raa6 {[%clk 0:00:06]}  Kg7 {[%clk 0:00:16]} 44. Ra8 {[%clk 0:00:06]}  h5 {[%clk 0:00:16]} 45. Rcc8 {[%clk 0:00:06]}  Be5 {[%clk 0:00:15]} 46. Rg8+ {[%clk 0:00:06]}  Kf6 {[%clk 0:00:15]} 47. Ra6+ {[%clk 0:00:06]}  R7d6 {[%clk 0:00:15]} 48. Rxd6+ {[%clk 0:00:06]}  Bxd6 {[%clk 0:00:16]} 49. Rc8 {[%clk 0:00:06]}  Be7 {[%clk 0:00:14]} 50. Kf3 {[%clk 0:00:07]}  g5 {[%clk 0:00:14]} 51. Rc6+ {[%clk 0:00:07]}  Kg7 {[%clk 0:00:14]} 52. Rc7 {[%clk 0:00:06]}  Kf6 {[%clk 0:00:14]} 53. Kg2 {[%clk 0:00:07]}  g4 {[%clk 0:00:14]} 54. Rc6+ {[%clk 0:00:07]}  Kg7 {[%clk 0:00:14]} 55. Rc8 {[%clk 0:00:07]}  h4 {[%clk 0:00:14]} 56. gxh4 {[%clk 0:00:07]}  Bxh4 {[%clk 0:00:15]} 57. Rxc5 {[%clk 0:00:04]}  Bxf2 {[%clk 0:00:15]} 58. Rf5 {[%clk 0:00:02]}  Bxe3+ {[%clk 0:00:11]} 59. Kg3 {[%clk 0:00:02]}  f6 {[%clk 0:00:10]} 60. Kxg4 {[%clk 0:00:03]}  Bg5 {[%clk 0:00:11]} 61. Rf3 {[%clk 0:00:03]}  Rd4+ {[%clk 0:00:10]} 62. Kg3 {[%clk 0:00:03]}  Kg6 {[%clk 0:00:11]} 63. Kg2 {[%clk 0:00:03]}  f5 {[%clk 0:00:10]} 64. Rg3 {[%clk 0:00:04]}  Kf6 {[%clk 0:00:10]} 65. Rf3 {[%clk 0:00:04]}  Rd2+ {[%clk 0:00:10]} 66. Kh3 {[%clk 0:00:04]}  Ke5 {[%clk 0:00:10]} 67. Rd3 {[%clk 0:00:05]}  Rb2 {[%clk 0:00:10]} 68. Rd5+ {[%clk 0:00:05]}  Kf6 {[%clk 0:00:10]} 69. Rd6+ {[%clk 0:00:05]}  Ke5 {[%clk 0:00:11]} 70. Rd5+ {[%clk 0:00:06]}  Ke4 {[%clk 0:00:10]} 71. Rd3 {[%clk 0:00:03]}  Bf4 {[%clk 0:00:10]} 0-1


[Site "https://www.chess.com"]

[Event "Titled Tuesday Blitz July 25 Early 2023"]
[White "Kezin, Roman"]
[Black "Goffredo_Fofi"]
[WhiteFideId "24124621"]
[WhiteElo "2826"]
[BlackElo "2544"]
[Result "1-0"]
[Round "2"]
[TimeControl "180+2"]
[Date "2023.07.25"]
[WhiteClock "0:00:03"]
[BlackClock "0:00:05"]
[Board "55"]

1. a4 {[%clk 0:03:00]}  d5 {[%clk 0:02:59]} 2. c3 {[%clk 0:02:59]}  Bf5 {[%clk 0:02:59]} 3. d3 {[%clk 0:02:58]}  c5 {[%clk 0:02:55]} 4. Bd2 {[%clk 0:02:49]}  Nc6 {[%clk 0:02:54]} 5. g3 {[%clk 0:02:46]}  Nf6 {[%clk 0:02:45]} 6. Bg2 {[%clk 0:02:28]}  e5 {[%clk 0:02:45]} 7. Na3 {[%clk 0:02:12]}  Be7 {[%clk 0:02:45]} 8. Qc2 {[%clk 0:02:02]}  O-O {[%clk 0:02:21]} 9. e4 {[%clk 0:02:00]}  Bg6 {[%clk 0:02:09]} 10. Bg5 {[%clk 0:01:21]}  c4 {[%clk 0:01:58]} 11. Bxf6 {[%clk 0:01:09]}  Bxf6 {[%clk 0:01:55]} 12. O-O-O {[%clk 0:01:04]}  cxd3 {[%clk 0:01:30]} 13. Qxd3 {[%clk 0:00:34]}  Qa5 {[%clk 0:01:08]} 14. Qb5 {[%clk 0:00:29]}  dxe4 {[%clk 0:01:01]} 15. Nc4 {[%clk 0:00:11]}  Qc7 {[%clk 0:00:55]} 16. Ne3 {[%clk 0:00:12]}  Nd4 {[%clk 0:00:20]} 17. Qd5 {[%clk 0:00:07]}  Rac8 {[%clk 0:00:18]} 18. Kb1 {[%clk 0:00:05]}  Nc6 {[%clk 0:00:18]} 19. h4 {[%clk 0:00:06]}  Rfd8 {[%clk 0:00:17]} 20. Qb3 {[%clk 0:00:05]}  Rxd1+ {[%clk 0:00:14]} 21. Qxd1 {[%clk 0:00:06]}  Rd8 {[%clk 0:00:14]} 22. Qc2 {[%clk 0:00:06]}  h6 {[%clk 0:00:12]} 23. Bxe4 {[%clk 0:00:04]}  Bxe4 {[%clk 0:00:12]} 24. Qxe4 {[%clk 0:00:05]}  Rd2 {[%clk 0:00:12]} 25. Nf3 {[%clk 0:00:04]}  Rxf2 {[%clk 0:00:12]} 26. Ng4 {[%clk 0:00:04]}  Rg2 {[%clk 0:00:04]} 27. Ng5 {[%clk 0:00:03]}  Rxg3 {[%clk 0:00:03]} 28. Qh7+ {[%clk 0:00:03]}  Kf8 {[%clk 0:00:04]} 29. Nxf6 {[%clk 0:00:03]}  Ke7 {[%clk 0:00:05]} 30. Nd5+ {[%clk 0:00:03]} 1-0


[Site "https://www.chess.com"]

[Event "Titled Tuesday Blitz July 25 Early 2023"]
[White "Terletsky, Oleg"]
[Black "Mitrabha, Guha"]
[WhiteFideId "14116774"]
[BlackFideId "5057000"]
[WhiteElo "2541"]
[BlackElo "2825"]
[Result "0-1"]
[Round "2"]
[TimeControl "180+2"]
[Date "2023.07.25"]
[WhiteClock "0:00:01"]
[BlackClock "0:00:19"]
[Board "56"]

1. e4 {[%clk 0:03:00]}  c6 {[%clk 0:02:57]} 2. d4 {[%clk 0:03:00]}  d5 {[%clk 0:02:58]} 3. Nc3 {[%clk 0:03:00]}  dxe4 {[%clk 0:02:57]} 4. Nxe4 {[%clk 0:03:01]}  Nf6 {[%clk 0:02:58]} 5. Nxf6+ {[%clk 0:03:01]}  exf6 {[%clk 0:02:59]} 6. Bc4 {[%clk 0:03:01]}  Bd6 {[%clk 0:02:59]} 7. Qe2+ {[%clk 0:03:02]}  Qe7 {[%clk 0:03:00]} 8. Qxe7+ {[%clk 0:03:01]}  Kxe7 {[%clk 0:03:01]} 9. Ne2 {[%clk 0:03:01]}  Rd8 {[%clk 0:03:01]} 10. c3 {[%clk 0:02:55]}  Nd7 {[%clk 0:02:55]} 11. Bf4 {[%clk 0:02:53]}  Nb6 {[%clk 0:02:52]} 12. Bxd6+ {[%clk 0:02:51]}  Rxd6 {[%clk 0:02:47]} 13. Bb3 {[%clk 0:02:51]}  Bf5 {[%clk 0:02:47]} 14. O-O-O {[%clk 0:02:48]}  Kf8 {[%clk 0:02:47]} 15. Rhe1 {[%clk 0:02:47]}  Rad8 {[%clk 0:02:47]} 16. Ng3 {[%clk 0:02:45]}  Bg6 {[%clk 0:02:37]} 17. f4 {[%clk 0:02:33]}  h6 {[%clk 0:02:17]} 18. f5 {[%clk 0:02:30]}  Bh7 {[%clk 0:02:12]} 19. Ne4 {[%clk 0:02:17]}  R6d7 {[%clk 0:02:03]} 20. g4 {[%clk 0:02:12]}  Nc8 {[%clk 0:01:37]} 21. h3 {[%clk 0:01:48]}  b6 {[%clk 0:01:26]} 22. Ba4 {[%clk 0:01:41]}  Ne7 {[%clk 0:01:17]} 23. Rd2 {[%clk 0:01:23]}  Rc7 {[%clk 0:01:08]} 24. Bb3 {[%clk 0:01:21]}  a5 {[%clk 0:01:05]} 25. a4 {[%clk 0:01:20]}  Rcd7 {[%clk 0:00:59]} 26. Rde2 {[%clk 0:01:16]}  Ng8 {[%clk 0:00:56]} 27. Nd2 {[%clk 0:00:50]}  h5 {[%clk 0:00:52]} 28. Nc4 {[%clk 0:00:48]}  Rb7 {[%clk 0:00:50]} 29. Ne3 {[%clk 0:00:42]}  Nh6 {[%clk 0:00:49]} 30. d5 {[%clk 0:00:39]}  hxg4 {[%clk 0:00:46]} 31. dxc6 {[%clk 0:00:37]}  Rc7 {[%clk 0:00:42]} 32. hxg4 {[%clk 0:00:35]}  Rxc6 {[%clk 0:00:41]} 33. Bc4 {[%clk 0:00:31]}  Rcd6 {[%clk 0:00:35]} 34. Bb5 {[%clk 0:00:30]}  Rb8 {[%clk 0:00:23]} 35. Nc4 {[%clk 0:00:12]}  Rdd8 {[%clk 0:00:23]} 36. Nxb6 {[%clk 0:00:12]}  Nxg4 {[%clk 0:00:24]} 37. Nd7+ {[%clk 0:00:13]}  Rxd7 {[%clk 0:00:22]} 38. Bxd7 {[%clk 0:00:13]}  Ne5 {[%clk 0:00:23]} 39. Rxe5 {[%clk 0:00:11]}  fxe5 {[%clk 0:00:23]} 40. Rxe5 {[%clk 0:00:11]}  Rd8 {[%clk 0:00:23]} 41. Bc6 {[%clk 0:00:10]}  Rc8 {[%clk 0:00:21]} 42. Bd7 {[%clk 0:00:07]}  Rd8 {[%clk 0:00:21]} 43. Bb5 {[%clk 0:00:07]}  f6 {[%clk 0:00:21]} 44. Rc5 {[%clk 0:00:06]}  Ke7 {[%clk 0:00:20]} 45. Kc2 {[%clk 0:00:05]}  Kd6 {[%clk 0:00:20]} 46. b4 {[%clk 0:00:05]}  Ra8 {[%clk 0:00:18]} 47. Kb3 {[%clk 0:00:04]}  Ra7 {[%clk 0:00:19]} 48. Bd3 {[%clk 0:00:04]}  Bg8+ {[%clk 0:00:18]} 49. Kb2 {[%clk 0:00:04]}  Bd5 {[%clk 0:00:18]} 50. Rxa5 {[%clk 0:00:02]}  Rc7 {[%clk 0:00:18]} 51. Ra6+ {[%clk 0:00:01]}  Ke5 {[%clk 0:00:18]} 52. Rb6 {[%clk 0:00:01]}  Rc8 {[%clk 0:00:19]} 53. a5 {[%clk 0:00:01]}  Rh8 {[%clk 0:00:20]} 54. a6 {[%clk 0:00:01]}  Rh2+ {[%clk 0:00:20]} 55. Kc1 {[%clk 0:00:01]}  Ra2 {[%clk 0:00:20]} 56. Bc2 {[%clk 0:00:01]}  Bc4 {[%clk 0:00:19]} 57. Kb1 {[%clk 0:00:01]}  Ra3 {[%clk 0:00:19]} 0-1


[Site "https://www.chess.com"]

[Event "Titled Tuesday Blitz July 25 Early 2023"]
[White "Chor, Kevin"]
[Black "Kravtsiv, Martyn"]
[WhiteFideId "2090740"]
[BlackFideId "14113147"]
[WhiteElo "2540"]
[BlackElo "2820"]
[Result "0-1"]
[Round "2"]
[TimeControl "180+2"]
[Date "2023.07.25"]
[WhiteClock "0:00:03"]
[BlackClock "0:00:09"]
[Board "57"]

1. e4 {[%clk 0:03:00]}  b6 {[%clk 0:02:59]} 2. d4 {[%clk 0:03:00]}  Bb7 {[%clk 0:02:59]} 3. Bd3 {[%clk 0:03:01]}  e6 {[%clk 0:02:58]} 4. Nd2 {[%clk 0:02:56]}  g6 {[%clk 0:02:54]} 5. Ngf3 {[%clk 0:02:54]}  Bg7 {[%clk 0:02:55]} 6. O-O {[%clk 0:02:53]}  Ne7 {[%clk 0:02:55]} 7. c3 {[%clk 0:02:46]}  d6 {[%clk 0:02:54]} 8. Re1 {[%clk 0:02:41]}  Nd7 {[%clk 0:02:53]} 9. Nf1 {[%clk 0:02:41]}  c5 {[%clk 0:02:53]} 10. Bf4 {[%clk 0:02:37]}  e5 {[%clk 0:02:50]} 11. dxe5 {[%clk 0:02:30]}  dxe5 {[%clk 0:02:48]} 12. Bg5 {[%clk 0:02:16]}  h6 {[%clk 0:02:46]} 13. Bh4 {[%clk 0:02:15]}  g5 {[%clk 0:02:43]} 14. Bg3 {[%clk 0:02:15]}  O-O {[%clk 0:02:39]} 15. Bb5 {[%clk 0:02:14]}  Bc6 {[%clk 0:02:38]} 16. Bxc6 {[%clk 0:01:52]}  Nxc6 {[%clk 0:02:39]} 17. Ne3 {[%clk 0:01:53]}  Re8 {[%clk 0:02:38]} 18. Nf5 {[%clk 0:01:52]}  Nf8 {[%clk 0:02:37]} 19. Qa4 {[%clk 0:01:48]}  Qc7 {[%clk 0:02:31]} 20. Rad1 {[%clk 0:01:48]}  Rad8 {[%clk 0:02:26]} 21. Rd5 {[%clk 0:01:42]}  Ng6 {[%clk 0:02:24]} 22. Red1 {[%clk 0:01:40]}  Bf8 {[%clk 0:02:16]} 23. Rxd8 {[%clk 0:01:25]}  Rxd8 {[%clk 0:02:15]} 24. Rxd8 {[%clk 0:01:25]}  Qxd8 {[%clk 0:02:11]} 25. h4 {[%clk 0:01:20]}  gxh4 {[%clk 0:02:02]} 26. N3xh4 {[%clk 0:01:15]}  Qd7 {[%clk 0:01:48]} 27. Nxg6 {[%clk 0:01:06]}  fxg6 {[%clk 0:01:46]} 28. Ne3 {[%clk 0:01:07]}  Qe6 {[%clk 0:01:41]} 29. Nd5 {[%clk 0:01:03]}  Kf7 {[%clk 0:01:34]} 30. Qd1 {[%clk 0:00:54]}  Bd6 {[%clk 0:01:13]} 31. Qd2 {[%clk 0:00:49]}  Kg7 {[%clk 0:01:10]} 32. Qe2 {[%clk 0:00:48]}  Ne7 {[%clk 0:00:56]} 33. Ne3 {[%clk 0:00:47]}  Bb8 {[%clk 0:00:44]} 34. Qa6 {[%clk 0:00:40]}  Qd7 {[%clk 0:00:40]} 35. Qc4 {[%clk 0:00:33]}  Bd6 {[%clk 0:00:28]} 36. Nd5 {[%clk 0:00:32]}  Qe6 {[%clk 0:00:24]} 37. Qa6 {[%clk 0:00:28]}  Nxd5 {[%clk 0:00:23]} 38. exd5 {[%clk 0:00:29]}  Qxd5 {[%clk 0:00:23]} 39. Qxa7+ {[%clk 0:00:29]}  Kf6 {[%clk 0:00:23]} 40. Qxb6 {[%clk 0:00:26]}  g5 {[%clk 0:00:23]} 41. f3 {[%clk 0:00:22]}  Ke6 {[%clk 0:00:19]} 42. Qd8 {[%clk 0:00:18]}  Qd2 {[%clk 0:00:12]} 43. Qe8+ {[%clk 0:00:16]}  Kd5 {[%clk 0:00:11]} 44. Qg8+ {[%clk 0:00:13]}  Kc6 {[%clk 0:00:11]} 45. Qa8+ {[%clk 0:00:13]}  Kc7 {[%clk 0:00:09]} 46. Qa7+ {[%clk 0:00:11]}  Kd8 {[%clk 0:00:08]} 47. Qb6+ {[%clk 0:00:10]}  Kd7 {[%clk 0:00:08]} 48. Qb5+ {[%clk 0:00:10]}  Ke7 {[%clk 0:00:08]} 49. Kh2 {[%clk 0:00:11]}  h5 {[%clk 0:00:07]} 50. Qb7+ {[%clk 0:00:10]}  Ke6 {[%clk 0:00:07]} 51. Qh7 {[%clk 0:00:08]}  h4 {[%clk 0:00:06]} 52. Qg6+ {[%clk 0:00:06]}  Kd7 {[%clk 0:00:07]} 53. Qf7+ {[%clk 0:00:06]}  Kc6 {[%clk 0:00:07]} 54. Qe8+ {[%clk 0:00:05]}  Kc7 {[%clk 0:00:06]} 55. Qf7+ {[%clk 0:00:05]}  Kb6 {[%clk 0:00:06]} 56. Qb3+ {[%clk 0:00:05]}  Kc6 {[%clk 0:00:06]} 57. Qa4+ {[%clk 0:00:05]}  Kc7 {[%clk 0:00:07]} 58. Qa7+ {[%clk 0:00:04]}  Kd8 {[%clk 0:00:07]} 59. Qb6+ {[%clk 0:00:04]}  Kd7 {[%clk 0:00:08]} 60. Qb7+ {[%clk 0:00:05]}  Ke6 {[%clk 0:00:09]} 61. Qc8+ {[%clk 0:00:05]}  Ke7 {[%clk 0:00:08]} 62. Qb7+ {[%clk 0:00:05]}  Kf6 {[%clk 0:00:08]} 63. Bxh4 {[%clk 0:00:04]}  gxh4 {[%clk 0:00:07]} 64. Qh7 {[%clk 0:00:04]}  Qf4+ {[%clk 0:00:07]} 65. Kg1 {[%clk 0:00:05]}  Qc1+ {[%clk 0:00:07]} 66. Kh2 {[%clk 0:00:05]}  e4+ {[%clk 0:00:07]} 67. Kh3 {[%clk 0:00:05]}  Qg5 {[%clk 0:00:08]} 68. Qh8+ {[%clk 0:00:03]}  Kf7 {[%clk 0:00:08]} 69. Qh7+ {[%clk 0:00:03]}  Kf6 {[%clk 0:00:08]} 70. Qh8+ {[%clk 0:00:04]}  Ke7 {[%clk 0:00:08]} 71. Qxh4 {[%clk 0:00:03]}  Qxh4+ {[%clk 0:00:08]} 72. Kxh4 {[%clk 0:00:03]}  e3 {[%clk 0:00:08]} 73. Kh3 {[%clk 0:00:03]}  e2 {[%clk 0:00:09]} 0-1


[Site "https://www.chess.com"]

[Event "Titled Tuesday Blitz July 25 Early 2023"]
[White "Kushko, Dmitriy"]
[Black "Richter, Paul"]
[WhiteFideId "14162261"]
[BlackFideId "2046350"]
[WhiteElo "2817"]
[BlackElo "2531"]
[Result "0-1"]
[Round "2"]
[TimeControl "180+2"]
[Date "2023.07.25"]
[WhiteClock "0:00:04"]
[BlackClock "0:00:09"]
[Board "60"]

1. e4 {[%clk 0:03:00]}  c5 {[%clk 0:02:59]} 2. Nf3 {[%clk 0:03:00]}  d6 {[%clk 0:02:58]} 3. Bb5+ {[%clk 0:02:59]}  Nc6 {[%clk 0:02:58]} 4. O-O {[%clk 0:02:58]}  Bd7 {[%clk 0:02:58]} 5. Re1 {[%clk 0:02:59]}  Nf6 {[%clk 0:02:58]} 6. c3 {[%clk 0:02:58]}  a6 {[%clk 0:02:58]} 7. Bf1 {[%clk 0:02:59]}  Bg4 {[%clk 0:02:58]} 8. d4 {[%clk 0:02:58]}  Bxf3 {[%clk 0:02:56]} 9. gxf3 {[%clk 0:02:56]}  cxd4 {[%clk 0:02:57]} 10. cxd4 {[%clk 0:02:56]}  e5 {[%clk 0:02:55]} 11. d5 {[%clk 0:02:54]}  Ne7 {[%clk 0:02:56]} 12. f4 {[%clk 0:02:50]}  Ng6 {[%clk 0:02:48]} 13. f5 {[%clk 0:02:50]}  Nf4 {[%clk 0:02:45]} 14. Bxf4 {[%clk 0:02:41]}  exf4 {[%clk 0:02:46]} 15. Qf3 {[%clk 0:02:37]}  g5 {[%clk 0:02:23]} 16. e5 {[%clk 0:01:39]}  dxe5 {[%clk 0:02:24]} 17. Rxe5+ {[%clk 0:01:40]}  Be7 {[%clk 0:02:14]} 18. Qe2 {[%clk 0:01:40]}  Kf8 {[%clk 0:02:11]} 19. Nc3 {[%clk 0:01:13]}  Bd6 {[%clk 0:02:09]} 20. Re1 {[%clk 0:01:13]}  Qc7 {[%clk 0:01:46]} 21. Re4 {[%clk 0:01:05]}  Kg7 {[%clk 0:01:34]} 22. Rc4 {[%clk 0:01:03]}  Qd7 {[%clk 0:01:31]} 23. Ne4 {[%clk 0:00:51]}  Rhe8 {[%clk 0:01:08]} 24. Qd2 {[%clk 0:00:39]}  Nxe4 {[%clk 0:00:47]} 25. Rcxe4 {[%clk 0:00:39]}  Rxe4 {[%clk 0:00:45]} 26. Rxe4 {[%clk 0:00:40]}  Qxf5 {[%clk 0:00:43]} 27. f3 {[%clk 0:00:31]}  Rc8 {[%clk 0:00:42]} 28. h3 {[%clk 0:00:16]}  Qf6 {[%clk 0:00:37]} 29. Bc4 {[%clk 0:00:14]}  b5 {[%clk 0:00:35]} 30. Bb3 {[%clk 0:00:14]}  Qf5 {[%clk 0:00:29]} 31. Kg2 {[%clk 0:00:13]}  h5 {[%clk 0:00:28]} 32. Qd4+ {[%clk 0:00:13]}  Qf6 {[%clk 0:00:27]} 33. Qxf6+ {[%clk 0:00:06]}  Kxf6 {[%clk 0:00:28]} 34. Re2 {[%clk 0:00:06]}  Rc1 {[%clk 0:00:27]} 35. Rc2 {[%clk 0:00:06]}  Rb1 {[%clk 0:00:20]} 36. Kf2 {[%clk 0:00:03]}  a5 {[%clk 0:00:18]} 37. a4 {[%clk 0:00:04]}  bxa4 {[%clk 0:00:16]} 38. Bxa4 {[%clk 0:00:04]}  Ra1 {[%clk 0:00:17]} 39. b3 {[%clk 0:00:04]}  Ke5 {[%clk 0:00:15]} 40. Bc6 {[%clk 0:00:03]}  Rb1 {[%clk 0:00:14]} 41. Re2+ {[%clk 0:00:03]}  Kf6 {[%clk 0:00:13]} 42. Ba4 {[%clk 0:00:02]}  Bc5+ {[%clk 0:00:14]} 43. Kg2 {[%clk 0:00:02]}  Rg1+ {[%clk 0:00:14]} 44. Kh2 {[%clk 0:00:03]}  Rg3 {[%clk 0:00:15]} 45. Rc2 {[%clk 0:00:02]}  Bd6 {[%clk 0:00:15]} 46. Rc6 {[%clk 0:00:02]}  Ke5 {[%clk 0:00:15]} 47. Rc8 {[%clk 0:00:03]}  Rxf3 {[%clk 0:00:14]} 48. Bc6 {[%clk 0:00:03]}  g4 {[%clk 0:00:12]} 49. hxg4 {[%clk 0:00:03]}  hxg4 {[%clk 0:00:13]} 50. Re8+ {[%clk 0:00:04]}  Kf6 {[%clk 0:00:13]} 51. Kg2 {[%clk 0:00:04]}  Rxb3 {[%clk 0:00:12]} 52. Rd8 {[%clk 0:00:04]}  f3+ {[%clk 0:00:12]} 53. Kf2 {[%clk 0:00:05]}  g3+ {[%clk 0:00:11]} 54. Ke1 {[%clk 0:00:04]}  Bb4+ {[%clk 0:00:08]} 55. Kd1 {[%clk 0:00:04]}  g2 {[%clk 0:00:08]} 56. Rg8 {[%clk 0:00:04]}  Rb1+ {[%clk 0:00:08]} 57. Kc2 {[%clk 0:00:04]}  g1=Q {[%clk 0:00:09]} 0-1


[Site "https://www.chess.com"]